fUSD/lending_fUSD_20241128
["ID","MTS","AMOUNT","RATE_DAILY","PERIOD"]
[343617755,1732752011039,150.0,0.00015,15]
[343617756,1732752097195,-361.0,8.219e-05,2]
[343617757,1732752148772,-1678.76703867,0.00013,10]
[343617758,1732752148796,-1942.03625344,0.00013,10]
[343617759,1732752148822,-2397.71785857,0.00013,10]
[343617760,1732752148859,-5243.86680897,0.00015,14]
[343617767,1732752264387,255.95502497,0.00015,15]
[343617788,1732752607479,150.0,7.141e-05,2]
[343617789,1732752607501,101.42,7.141e-05,2]
[343617790,1732752609041,-157.38467415,8.219e-05,2]
[343617795,1732752632411,-218.47712899,8.219e-05,2]
[343617796,1732752632421,-1964.21,8.219e-05,2]
[343617797,1732752632430,-6697.831412,8.95e-05,2]
[343617798,1732752632439,-7193.68062706,8.996e-05,2]
[343617799,1732752632717,-9499.79476034,8.996e-05,2]
[343617800,1732752632741,-1050.1784672,8.996e-05,2]
[343617801,1732752632753,-1464.9461454,8.996e-05,2]
[343617802,1732752632762,-251.9038546,9.006e-05,2]
[343617803,1732752632782,-73.1961454,9.006e-05,2]
[343617804,1732752632791,-1000.0,9.011e-05,2]
[343617805,1732752632800,-190.28,9.06e-05,2]
[343617806,1732752632809,-250.0,9.205e-05,2]
[343617807,1732752632818,-400.0,9.589e-05,2]
[343617808,1732752632828,-2536.1218,9.798e-05,2]
[343617809,1732752632837,-150.0,9.819e-05,2]
[343617810,1732752632846,-816.0,9.82e-05,2]
[343617811,1732752632856,-3472.6646939,9.82e-05,2]
[343617812,1732752632902,-283.3353061,9.82e-05,2]
[343617813,1732752632912,-1263.0,9.82e-05,2]
[343617814,1732752632921,-3522.0,9.82e-05,2]
[343617815,1732752632931,-978.0,9.82e-05,2]
[343617816,1732752632940,-534.0,9.82e-05,2]
[343617817,1732752632949,-267.506,9.82e-05,2]
[343617818,1732752632959,-150.0,9.82e-05,2]
[343617819,1732752632970,-10000.337,9.82e-05,2]
[343617820,1732752632979,-150.0,9.854e-05,2]
[343617821,1732752632991,-20969.4037121,9.867e-05,2]
[343617822,1732752633001,-720.455,9.873e-05,2]
[343617823,1732752633011,-500.0,9.898e-05,2]
[343617824,1732752633021,-500.0,9.898e-05,2]
[343617825,1732752633030,-500.0,9.898e-05,2]
[343617826,1732752633040,-500.0,9.898e-05,2]
[343617827,1732752633050,-500.0,9.898e-05,2]
[343617828,1732752633060,-500.0,9.898e-05,2]
[343617829,1732752633070,-291.49594337,9.898e-05,2]
[343617830,1732752633079,-500.0,9.898e-05,2]
[343617831,1732752633089,-500.0,9.898e-05,2]
[343617832,1732752633099,-500.0,9.898e-05,2]
[343617833,1732752633109,-500.0,9.898e-05,2]
[343617834,1732752633118,-500.0,9.898e-05,2]
[343617835,1732752633128,-403.36181722,9.898e-05,2]
[343617836,1732752633138,-500.0,9.898e-05,2]
[343617837,1732752633147,-500.0,9.898e-05,2]
[343617838,1732752633157,-500.0,9.898e-05,2]
[343617839,1732752633167,-500.0,9.898e-05,2]
[343617840,1732752633177,-500.0,9.898e-05,2]
[343617841,1732752633187,-500.0,9.898e-05,2]
[343617842,1732752633197,-339.92,9.898e-05,2]
[343617843,1732752633207,-500.0,9.898e-05,2]
[343617844,1732752633216,-482.81120296,9.898e-05,2]
[343617845,1732752633226,-500.0,9.898e-05,2]
[343617846,1732752633240,-500.0,9.898e-05,2]
[343617847,1732752633249,-500.0,9.898e-05,2]
[343617848,1732752633259,-219.82,9.898e-05,2]
[343617849,1732752633269,-625.08,9.898e-05,2]
[343617850,1732752633278,-597.01,9.898e-05,2]
[343617851,1732752633288,-500.0,9.898e-05,2]
[343617852,1732752633298,-500.0,9.898e-05,2]
[343617853,1732752633308,-416.94,9.898e-05,2]
[343617854,1732752633318,-601.04,9.898e-05,2]
[343617855,1732752633327,-500.0,9.898e-05,2]
[343617856,1732752633336,-500.0,9.898e-05,2]
[343617857,1732752633345,-500.0,9.898e-05,2]
[343617858,1732752633355,-500.0,9.898e-05,2]
[343617859,1732752633364,-500.0,9.898e-05,2]
[343617860,1732752633373,-500.0,9.898e-05,2]
[343617861,1732752633383,-500.0,9.898e-05,2]
[343617862,1732752633392,-500.0,9.898e-05,2]
[343617863,1732752633401,-500.0,9.898e-05,2]
[343617864,1732752633411,-500.0,9.898e-05,2]
[343617865,1732752633420,-610.62,9.898e-05,2]
[343617866,1732752633430,-500.0,9.898e-05,2]
[343617867,1732752633439,-500.0,9.898e-05,2]
[343617868,1732752633450,-500.0,9.898e-05,2]
[343617869,1732752633459,-500.0,9.898e-05,2]
[343617870,1732752633469,-500.0,9.898e-05,2]
[343617871,1732752633478,-500.0,9.898e-05,2]
[343617872,1732752633491,-349.12,9.898e-05,2]
[343617873,1732752633502,-500.0,9.898e-05,2]
[343617874,1732752633511,-500.0,9.898e-05,2]
[343617875,1732752633522,-500.0,9.898e-05,2]
[343617876,1732752633531,-500.0,9.898e-05,2]
[343617877,1732752633542,-500.0,9.898e-05,2]
[343617878,1732752633551,-500.0,9.898e-05,2]
[343617879,1732752633560,-511.38,9.898e-05,2]
[343617880,1732752633570,-343.5,9.898e-05,2]
[343617881,1732752633580,-500.0,9.898e-05,2]
[343617882,1732752633589,-279.66,9.898e-05,2]
[343617883,1732752633598,-500.0,9.898e-05,2]
[343617884,1732752633608,-500.0,9.898e-05,2]
[343617885,1732752633617,-500.0,9.898e-05,2]
[343617886,1732752633628,-500.0,9.898e-05,2]
[343617887,1732752633637,-500.0,9.898e-05,2]
[343617888,1732752633647,-500.0,9.898e-05,2]
[343617889,1732752633656,-500.0,9.898e-05,2]
[343617890,1732752633665,-500.0,9.898e-05,2]
[343617891,1732752633674,-500.0,9.898e-05,2]
[343617892,1732752633683,-500.0,9.898e-05,2]
[343617893,1732752633693,-561.08,9.898e-05,2]
[343617894,1732752633702,-65571.7372,9.898e-05,2]
[343617895,1732752633711,-500.90139761,9.973e-05,2]
[343617896,1732752633721,-500.0,9.973e-05,2]
[343617897,1732752633731,-500.0,9.973e-05,2]
[343617898,1732752633742,-826.101,9.983e-05,2]
[343617899,1732752633751,-1397.05541395,9.99e-05,2]
[343617900,1732752633760,-1660.04118141,9.99e-05,2]
[343617901,1732752633770,-1660.04118136,9.99e-05,2]
[343617902,1732752633780,-1660.04118136,9.99e-05,2]
[343617903,1732752633789,-1660.04118136,9.99e-05,2]
[343617904,1732752633799,-1660.04118136,9.99e-05,2]
[343617905,1732752633809,-1660.04118136,9.99e-05,2]
[343617906,1732752633818,-1660.04118136,9.991e-05,2]
[343617907,1732752633827,-1660.04118136,9.994e-05,2]
[343617908,1732752633837,-253.61017934,9.996e-05,2]
[343617909,1732752633846,-500.0,9.996e-05,2]
[343617910,1732752633855,-519.3,9.996e-05,2]
[343617911,1732752633865,-500.0,9.996e-05,2]
[343617912,1732752633875,-500.0,9.996e-05,2]
[343617913,1732752633887,-500.0,9.996e-05,2]
[343617914,1732752633896,-500.0,9.996e-05,2]
[343617915,1732752633905,-500.0,9.996e-05,2]
[343617916,1732752633915,-500.0,9.996e-05,2]
[343617917,1732752633924,-500.0,9.996e-05,2]
[343617918,1732752633934,-500.0,9.996e-05,2]
[343617919,1732752633944,-500.0,9.996e-05,2]
[343617920,1732752633953,-500.0,9.996e-05,2]
[343617921,1732752633962,-500.0,9.996e-05,2]
[343617922,1732752633972,-500.0,9.996e-05,2]
[343617923,1732752633982,-567.47,9.996e-05,2]
[343617924,1732752633995,-500.0,9.996e-05,2]
[343617925,1732752634004,-643.39,9.996e-05,2]
[343617926,1732752634014,-643.39,9.996e-05,2]
[343617927,1732752634024,-500.0,9.996e-05,2]
[343617928,1732752634033,-643.39,9.996e-05,2]
[343617929,1732752634043,-500.0,9.996e-05,2]
[343617930,1732752634053,-500.0,9.996e-05,2]
[343617931,1732752634062,-500.0,9.996e-05,2]
[343617932,1732752634072,-1225.6,9.996e-05,2]
[343617933,1732752634081,-1225.6,9.996e-05,2]
[343617934,1732752634090,-1225.6,9.996e-05,2]
[343617935,1732752634099,-500.0,9.996e-05,2]
[343617936,1732752634109,-500.0,9.996e-05,2]
[343617937,1732752634118,-32431.06900634,9.997e-05,2]
[343617938,1732752635605,-338.1032374,9.997e-05,2]
[343617939,1732752635616,-1693.74609057,9.997e-05,2]
[343617957,1732752638445,-2119.92297839,9.997e-05,2]
[343617958,1732752638456,-4915.66292963,9.997e-05,2]
[343617959,1732752638469,-423.75393474,9.997e-05,2]
[343617960,1732752638480,-985.0,9.997e-05,2]
[343617961,1732752638507,-413.54643221,9.997e-05,2]
[343617962,1732752639407,-1090.49957334,9.997e-05,2]
[343617965,1732752640287,-2691.72,9.996e-05,2]
[343617966,1732752640296,-141068.24622584,9.997e-05,2]
[343617967,1732752640556,-166051.07140175,9.997e-05,2]
[343617969,1732752643551,-100824.9007182,9.997e-05,2]
[343617970,1732752643561,-7080.25143892,9.997e-05,2]
[343617971,1732752643570,-500.0,9.997e-05,2]
[343617972,1732752643580,-500.0,9.997e-05,2]
[343617973,1732752643589,-500.0,9.997e-05,2]
[343617974,1732752643598,-500.0,9.997e-05,2]
[343617975,1732752643607,-278.46,9.997e-05,2]
[343617976,1732752643616,-534.52,9.997e-05,2]
[343617977,1732752643625,-500.0,9.997e-05,2]
[343617978,1732752643635,-500.0,9.997e-05,2]
[343617979,1732752643644,-500.0,9.997e-05,2]
[343617980,1732752643652,-500.0,9.997e-05,2]
[343617981,1732752643662,-500.0,9.997e-05,2]
[343617982,1732752643671,-500.0,9.997e-05,2]
[343617983,1732752643681,-224.59441532,9.997e-05,2]
[343617984,1732752643692,-275.40558468,9.997e-05,2]
[343617985,1732752643702,-500.0,9.997e-05,2]
[343617986,1732752643715,-500.0,9.997e-05,2]
[343617987,1732752643724,-500.0,9.997e-05,2]
[343617988,1732752643733,-500.0,9.997e-05,2]
[343617989,1732752643744,-500.0,9.997e-05,2]
[343617990,1732752643754,-500.0,9.997e-05,2]
[343617991,1732752643763,-500.0,9.997e-05,2]
[343617992,1732752643772,-234.5,9.997e-05,2]
[343617993,1732752643782,-500.0,9.997e-05,2]
[343617994,1732752643791,-461.62,9.997e-05,2]
[343617995,1732752643801,-500.0,9.997e-05,2]
[343617996,1732752643810,-500.0,9.997e-05,2]
[343617997,1732752643819,-500.0,9.997e-05,2]
[343617998,1732752643829,-500.0,9.997e-05,2]
[343617999,1732752643839,-500.0,9.997e-05,2]
[343618000,1732752643848,-500.0,9.997e-05,2]
[343618001,1732752643857,-205.09368852,9.997e-05,2]
[343618002,1732752643867,-500.0,9.997e-05,2]
[343618003,1732752643876,-500.0,9.997e-05,2]
[343618004,1732752643890,-213.39,9.997e-05,2]
[343618005,1732752643899,-500.0,9.997e-05,2]
[343618006,1732752643908,-500.0,9.997e-05,2]
[343618007,1732752643917,-500.0,9.997e-05,2]
[343618008,1732752643927,-500.0,9.997e-05,2]
[343618009,1732752643937,-500.0,9.997e-05,2]
[343618010,1732752643947,-500.0,9.997e-05,2]
[343618011,1732752643956,-276.35423127,9.997e-05,2]
[343618012,1732752643967,-229.33,9.997e-05,2]
[343618013,1732752643976,-500.0,9.997e-05,2]
[343618014,1732752643985,-500.0,9.997e-05,2]
[343618015,1732752643996,-500.0,9.997e-05,2]
[343618016,1732752644006,-500.0,9.997e-05,2]
[343618017,1732752644015,-500.0,9.997e-05,2]
[343618018,1732752644025,-443.74,9.997e-05,2]
[343618019,1732752644034,-500.0,9.997e-05,2]
[343618021,1732752644043,-500.0,9.997e-05,2]
[343618022,1732752644053,-500.0,9.997e-05,2]
[343618023,1732752644063,-500.0,9.997e-05,2]
[343618024,1732752644072,-500.0,9.997e-05,2]
[343618025,1732752644081,-500.0,9.997e-05,2]
[343618026,1732752644091,-504.89,9.997e-05,2]
[343618027,1732752644101,-500.0,9.997e-05,2]
[343618028,1732752644111,-500.0,9.997e-05,2]
[343618029,1732752644120,-500.0,9.997e-05,2]
[343618030,1732752644129,-500.0,9.997e-05,2]
[343618031,1732752644139,-500.0,9.997e-05,2]
[343618032,1732752644149,-500.0,9.997e-05,2]
[343618033,1732752644161,-500.0,9.997e-05,2]
[343618034,1732752644170,-526.49,9.997e-05,2]
[343618035,1732752644180,-500.0,9.997e-05,2]
[343618036,1732752644189,-500.0,9.997e-05,2]
[343618037,1732752644199,-205.2439721,9.997e-05,2]
[343618038,1732752644208,-500.0,9.997e-05,2]
[343618039,1732752644218,-500.0,9.997e-05,2]
[343618040,1732752644227,-500.0,9.997e-05,2]
[343618041,1732752644239,-500.0,9.997e-05,2]
[343618042,1732752644250,-314.58637478,9.997e-05,2]
[343618043,1732752644259,-500.0,9.997e-05,2]
[343618044,1732752644268,-500.0,9.997e-05,2]
[343618045,1732752644278,-500.0,9.997e-05,2]
[343618046,1732752644288,-500.0,9.997e-05,2]
[343618047,1732752644297,-500.0,9.997e-05,2]
[343618048,1732752644306,-500.0,9.997e-05,2]
[343618049,1732752644317,-500.0,9.997e-05,2]
[343618050,1732752644327,-500.0,9.997e-05,2]
[343618051,1732752644337,-500.0,9.997e-05,2]
[343618052,1732752644347,-500.0,9.997e-05,2]
[343618053,1732752644356,-500.0,9.997e-05,2]
[343618054,1732752644365,-500.0,9.997e-05,2]
[343618055,1732752644375,-500.0,9.997e-05,2]
[343618056,1732752644384,-500.0,9.997e-05,2]
[343618057,1732752644394,-500.0,9.997e-05,2]
[343618058,1732752644403,-500.0,9.997e-05,2]
[343618059,1732752644412,-500.0,9.997e-05,2]
[343618060,1732752644421,-505.68,9.997e-05,2]
[343618061,1732752644431,-218.71,9.997e-05,2]
[343618062,1732752644440,-500.0,9.997e-05,2]
[343618063,1732752644449,-500.0,9.997e-05,2]
[343618064,1732752644459,-416.57,9.997e-05,2]
[343618065,1732752644468,-500.0,9.997e-05,2]
[343618066,1732752644478,-500.0,9.997e-05,2]
[343618067,1732752644487,-500.0,9.997e-05,2]
[343618068,1732752644503,-360.67234888,9.997e-05,2]
[343618069,1732752644512,-500.0,9.997e-05,2]
[343618070,1732752644521,-500.0,9.997e-05,2]
[343618071,1732752644530,-500.0,9.997e-05,2]
[343618072,1732752644539,-314.94115779,9.997e-05,2]
[343618073,1732752644549,-500.0,9.997e-05,2]
[343618074,1732752644559,-500.0,9.997e-05,2]
[343618075,1732752644568,-500.0,9.997e-05,2]
[343618076,1732752644577,-500.0,9.997e-05,2]
[343618077,1732752644587,-500.0,9.997e-05,2]
[343618078,1732752644596,-500.0,9.997e-05,2]
[343618079,1732752644605,-500.0,9.997e-05,2]
[343618080,1732752644614,-500.0,9.997e-05,2]
[343618081,1732752644623,-441.88,9.997e-05,2]
[343618082,1732752644632,-550.38,9.997e-05,2]
[343618083,1732752644641,-500.0,9.997e-05,2]
[343618084,1732752644651,-500.0,9.997e-05,2]
[343618085,1732752644660,-500.0,9.997e-05,2]
[343618086,1732752644670,-500.0,9.997e-05,2]
[343618087,1732752644680,-544.76,9.997e-05,2]
[343618088,1732752644691,-500.0,9.997e-05,2]
[343618089,1732752644702,-500.0,9.997e-05,2]
[343618090,1732752644713,-500.0,9.997e-05,2]
[343618091,1732752644723,-18.52789296,9.997e-05,2]
[343618092,1732752644737,-481.47210704,9.997e-05,2]
[343618093,1732752644752,-500.0,9.997e-05,2]
[343618094,1732752644761,-96.50348932,9.997e-05,2]
[343618095,1732752644825,-403.49651068,9.997e-05,2]
[343618096,1732752644835,-500.0,9.997e-05,2]
[343618097,1732752644846,-500.0,9.997e-05,2]
[343618098,1732752644855,-500.0,9.997e-05,2]
[343618099,1732752644865,-568.95,9.997e-05,2]
[343618100,1732752644877,-470.25,9.997e-05,2]
[343618101,1732752644887,-500.0,9.997e-05,2]
[343618102,1732752644898,-500.0,9.997e-05,2]
[343618103,1732752644908,-500.0,9.997e-05,2]
[343618104,1732752644918,-566.39,9.997e-05,2]
[343618105,1732752644927,-500.0,9.997e-05,2]
[343618106,1732752644938,-472.23428922,9.997e-05,2]
[343618107,1732752645062,-27.76571078,9.997e-05,2]
[343618108,1732752645072,-500.0,9.997e-05,2]
[343618109,1732752645082,-500.0,9.997e-05,2]
[343618110,1732752645091,-500.0,9.997e-05,2]
[343618111,1732752645101,-500.0,9.997e-05,2]
[343618112,1732752645110,-500.0,9.997e-05,2]
[343618113,1732752645120,-500.0,9.997e-05,2]
[343618114,1732752645129,-322.56,9.997e-05,2]
[343618115,1732752645139,-500.0,9.997e-05,2]
[343618116,1732752645148,-500.0,9.997e-05,2]
[343618117,1732752645158,-468.82,9.997e-05,2]
[343618118,1732752645167,-469.02,9.997e-05,2]
[343618119,1732752645176,-500.0,9.997e-05,2]
[343618120,1732752645186,-338.19066305,9.997e-05,2]
[343618129,1732752646500,-250.0,9.501e-05,2]
[343618130,1732752646510,-500.0,9.996e-05,2]
[343618131,1732752646520,-71.55933695,9.997e-05,2]
[343618132,1732752646528,-500.0,9.997e-05,2]
[343618133,1732752646537,-500.0,9.997e-05,2]
[343618134,1732752646547,-500.0,9.997e-05,2]
[343618135,1732752646556,-500.0,9.997e-05,2]
[343618136,1732752646566,-500.0,9.997e-05,2]
[343618137,1732752646574,-500.0,9.997e-05,2]
[343618138,1732752646583,-294.66,9.997e-05,2]
[343618139,1732752646592,-500.0,9.997e-05,2]
[343618140,1732752646601,-500.0,9.997e-05,2]
[343618141,1732752646610,-500.0,9.997e-05,2]
[343618142,1732752646618,-500.0,9.997e-05,2]
[343618143,1732752646627,-500.0,9.997e-05,2]
[343618144,1732752646636,-583.88,9.997e-05,2]
[343618145,1732752646647,-500.0,9.997e-05,2]
[343618146,1732752646656,-500.0,9.997e-05,2]
[343618148,1732752646666,-500.0,9.997e-05,2]
[343618149,1732752646676,-500.0,9.997e-05,2]
[343618150,1732752646685,-500.0,9.997e-05,2]
[343618151,1732752646694,-500.0,9.997e-05,2]
[343618152,1732752646703,-500.0,9.997e-05,2]
[343618153,1732752646712,-500.0,9.997e-05,2]
[343618154,1732752646721,-404.32154144,9.997e-05,2]
[343618155,1732752646731,-500.0,9.997e-05,2]
[343618156,1732752646741,-500.0,9.997e-05,2]
[343618157,1732752646752,-445.92,9.997e-05,2]
[343618158,1732752646761,-500.0,9.997e-05,2]
[343618159,1732752646770,-500.0,9.997e-05,2]
[343618160,1732752646779,-500.0,9.997e-05,2]
[343618161,1732752646788,-500.0,9.997e-05,2]
[343618162,1732752646798,-500.0,9.997e-05,2]
[343618163,1732752646808,-1660.04118136,9.997e-05,2]
[343618165,1732752646817,-500.0,9.997e-05,2]
[343618166,1732752646826,-500.0,9.997e-05,2]
[343618167,1732752646836,-48.89285001,9.997e-05,2]
[343618174,1732752977267,-165.45,9.201e-05,2]
[343618175,1732752977293,-162.55,9.233e-05,2]
[343618176,1732752977319,-1000.0,9.289e-05,2]
[343618177,1732752977346,-300.0,9.7e-05,2]
[343618178,1732752977371,-1160.7256,9.798e-05,2]
[343618179,1732752977396,-1166.7701,9.898e-05,2]
[343618180,1732752977420,-184.80040267,9.947e-05,2]
[343618181,1732752977444,-343.50403164,9.973e-05,2]
[343618182,1732752977467,-204.52080262,9.973e-05,2]
[343618183,1732752977491,-500.0,9.973e-05,2]
[343618184,1732752977514,-150.0,9.995e-05,2]
[343618185,1732752977537,-300.0,9.995e-05,2]
[343618186,1732752977560,-500.0,9.996e-05,2]
[343618187,1732752977584,-500.0,9.996e-05,2]
[343618188,1732752977611,-233.64,9.996e-05,2]
[343618189,1732752977634,-500.0,9.996e-05,2]
[343618190,1732752977657,-500.0,9.996e-05,2]
[343618191,1732752977681,-500.0,9.996e-05,2]
[343618192,1732752977705,-500.0,9.996e-05,2]
[343618193,1732752977728,-500.0,9.996e-05,2]
[343618194,1732752977753,-500.0,9.996e-05,2]
[343618195,1732752977776,-193.33,9.996e-05,2]
[343618196,1732752977800,-500.0,9.996e-05,2]
[343618197,1732752977825,-500.0,9.996e-05,2]
[343618198,1732752977852,-500.0,9.996e-05,2]
[343618199,1732752977875,-237.18,9.996e-05,2]
[343618200,1732752977899,-500.0,9.996e-05,2]
[343618201,1732752977923,-500.0,9.996e-05,2]
[343618202,1732752977947,-555.55,9.996e-05,2]
[343618203,1732752977972,-500.0,9.996e-05,2]
[343618204,1732752977997,-500.0,9.996e-05,2]
[343618205,1732752978020,-500.0,9.996e-05,2]
[343618206,1732752978043,-500.0,9.996e-05,2]
[343618207,1732752978068,-605.69,9.996e-05,2]
[343618208,1732752978095,-500.0,9.996e-05,2]
[343618209,1732752978118,-500.0,9.996e-05,2]
[343618210,1732752978143,-500.0,9.996e-05,2]
[343618211,1732752978166,-500.0,9.996e-05,2]
[343618212,1732752978190,-500.0,9.996e-05,2]
[343618213,1732752978214,-500.0,9.996e-05,2]
[343618214,1732752978239,-500.0,9.996e-05,2]
[343618215,1732752978264,-374.64,9.996e-05,2]
[343618216,1732752978288,-500.0,9.996e-05,2]
[343618217,1732752978311,-500.0,9.996e-05,2]
[343618218,1732752978335,-500.0,9.996e-05,2]
[343618219,1732752978361,-500.0,9.996e-05,2]
[343618220,1732752978385,-500.0,9.996e-05,2]
[343618221,1732752978408,-500.0,9.996e-05,2]
[343618222,1732752978431,-500.0,9.996e-05,2]
[343618223,1732752978455,-500.0,9.996e-05,2]
[343618224,1732752978478,-500.0,9.996e-05,2]
[343618225,1732752978502,-493.92,9.996e-05,2]
[343618226,1732752978525,-500.0,9.996e-05,2]
[343618227,1732752978549,-500.0,9.996e-05,2]
[343618228,1732752978572,-241.33,9.996e-05,2]
[343618229,1732752978601,-500.0,9.996e-05,2]
[343618230,1732752978624,-500.0,9.996e-05,2]
[343618231,1732752978650,-501.61,9.996e-05,2]
[343618232,1732752978673,-213.10997434,9.996e-05,2]
[343618233,1732752978696,-500.0,9.996e-05,2]
[343618234,1732752978720,-500.0,9.996e-05,2]
[343618235,1732752978744,-500.0,9.996e-05,2]
[343618236,1732752978770,-500.0,9.996e-05,2]
[343618237,1732752978795,-500.0,9.996e-05,2]
[343618238,1732752978819,-500.0,9.996e-05,2]
[343618239,1732752978848,-500.0,9.996e-05,2]
[343618240,1732752978872,-500.0,9.996e-05,2]
[343618241,1732752978897,-500.0,9.996e-05,2]
[343618242,1732752978921,-500.0,9.996e-05,2]
[343618243,1732752978946,-500.0,9.996e-05,2]
[343618244,1732752978969,-500.0,9.996e-05,2]
[343618245,1732752978997,-500.0,9.996e-05,2]
[343618246,1732752979021,-500.0,9.996e-05,2]
[343618247,1732752979045,-500.0,9.996e-05,2]
[343618248,1732752979069,-500.0,9.996e-05,2]
[343618249,1732752979097,-500.0,9.996e-05,2]
[343618250,1732752979122,-500.0,9.996e-05,2]
[343618251,1732752979147,-500.0,9.996e-05,2]
[343618252,1732752979170,-432.98054496,9.996e-05,2]
[343618253,1732752979195,-500.0,9.996e-05,2]
[343618254,1732752979218,-500.0,9.996e-05,2]
[343618255,1732752979242,-500.0,9.996e-05,2]
[343618256,1732752979266,-500.0,9.996e-05,2]
[343618257,1732752979295,-500.0,9.996e-05,2]
[343618258,1732752979320,-500.0,9.996e-05,2]
[343618259,1732752979348,-500.0,9.996e-05,2]
[343618260,1732752979373,-500.0,9.996e-05,2]
[343618261,1732752979399,-567.03,9.996e-05,2]
[343618262,1732752979425,-1275.56,9.996e-05,2]
[343618263,1732752979451,-1275.56,9.996e-05,2]
[343618264,1732752979655,-1275.56,9.996e-05,2]
[343618265,1732752979679,-500.0,9.996e-05,2]
[343618266,1732752979704,-275.32522184,9.996e-05,2]
[343618267,1732752979732,-500.0,9.996e-05,2]
[343618268,1732752979757,-500.0,9.996e-05,2]
[343618269,1732752979780,-168.13,9.996e-05,2]
[343618270,1732752979805,-500.0,9.996e-05,2]
[343618271,1732752979830,-500.0,9.996e-05,2]
[343618272,1732752979858,-500.0,9.996e-05,2]
[343618273,1732752979884,-500.0,9.996e-05,2]
[343618274,1732752979908,-613.99,9.996e-05,2]
[343618275,1732752979932,-500.0,9.996e-05,2]
[343618276,1732752979956,-500.0,9.996e-05,2]
[343618277,1732752979984,-500.0,9.996e-05,2]
[343618278,1732752980007,-500.0,9.996e-05,2]
[343618279,1732752980030,-245.057873,9.996e-05,2]
[343618280,1732752980058,-500.0,9.996e-05,2]
[343618281,1732752980084,-500.0,9.996e-05,2]
[343618282,1732752980113,-500.0,9.996e-05,2]
[343618283,1732752980139,-500.0,9.996e-05,2]
[343618284,1732752980163,-500.0,9.996e-05,2]
[343618285,1732752980188,-500.0,9.996e-05,2]
[343618286,1732752980213,-500.0,9.996e-05,2]
[343618287,1732752980236,-500.0,9.996e-05,2]
[343618288,1732752980261,-543.82,9.996e-05,2]
[343618289,1732752980286,-2720.77,9.996e-05,2]
[343618290,1732752980311,-543.82,9.996e-05,2]
[343618291,1732752980337,-543.82,9.996e-05,2]
[343618292,1732752980369,-500.0,9.996e-05,2]
[343618293,1732752980394,-500.0,9.996e-05,2]
[343618294,1732752980418,-500.0,9.996e-05,2]
[343618295,1732752980442,-596.7,9.996e-05,2]
[343618296,1732752980465,-500.0,9.996e-05,2]
[343618297,1732752980488,-500.0,9.996e-05,2]
[343618298,1732752980512,-500.0,9.996e-05,2]
[343618299,1732752980538,-478.62130012,9.996e-05,2]
[343618300,1732752980562,-500.0,9.996e-05,2]
[343618301,1732752980586,-500.0,9.996e-05,2]
[343618302,1732752980614,-186.81117522,9.996e-05,2]
[343618303,1732752980638,-500.0,9.996e-05,2]
[343618304,1732752980663,-584.91,9.996e-05,2]
[343618305,1732752980687,-500.0,9.996e-05,2]
[343618306,1732752980711,-500.0,9.996e-05,2]
[343618307,1732752980735,-500.0,9.996e-05,2]
[343618308,1732752980760,-500.0,9.996e-05,2]
[343618309,1732752980784,-500.0,9.996e-05,2]
[343618310,1732752980808,-500.0,9.996e-05,2]
[343618311,1732752980832,-499.0,9.996e-05,2]
[343618312,1732752980858,-2662.21,9.996e-05,2]
[343618313,1732752980882,-2662.21,9.996e-05,2]
[343618314,1732752980906,-2662.21,9.996e-05,2]
[343618315,1732752980930,-627.3,9.996e-05,2]
[343618316,1732752980953,-500.0,9.996e-05,2]
[343618317,1732752980977,-160.99,9.996e-05,2]
[343618318,1732752981003,-500.0,9.996e-05,2]
[343618319,1732752981027,-500.0,9.996e-05,2]
[343618320,1732752981051,-285.35,9.996e-05,2]
[343618321,1732752981078,-500.0,9.996e-05,2]